Workbook

Sheet OBJETIVOS
B1: =TODAY() -> 2022-12-07 | C1: OBJETIVOS | J1: Ejercicio | K1: Dieta
B2: FECHA DE INICIO | C2: DIARIO DE DIETA Y EJERCICIOS
B3: =StartDate+121 -> 2023-04-07 | C3: ANÁLISIS DIETÉTICO
B4: FECHA DE FINALIZACIÓN
B5: 220.00
B6: PESO INICIAL
B7: 180.00 | C7: ANÁLISIS DE EJERCICIOS
B8: PESO FINAL
B9: =StartWeight-EndWeight -> 40
B10: PÉRDIDA OBJETIVO
B11: =EndDate-StartDate -> 121
B12: DÍAS PARA PERDER PESO
B13: =WeightGoal/B11 -> 0.33
B14: PÉRDIDA DIARIA

Sheet DIETA
B1: DIETA | G1: Objetivos | H1: Ejercicio
B2: =Subtítulo -> DIARIO DE DIETA Y EJERCICIOS
B3: FECHA | C3: TIEMPO | D3: DESCRIPCIÓN | E3: CALORÍAS | F3: CARBOHIDRATOS | G3: PROTEÍNAS | H3: GRASAS | I3: NOTAS
B4: =StartDate -> 2022-12-07 | C4: 07:00:00 | D4: Café | E4: 1 | F4: 0 | G4: 0 | H4: 0 | I4: Café matutino
B5: =StartDate -> 2022-12-07 | C5: 08:00:00 | D5: Bagel | E5: 10 | F5: 10 | G5: 2 | H5: 10 | I5: Desayuno ligero
B6: =StartDate -> 2022-12-07 | C6: 12:00:00 | D6: Comida | E6: 283 | F6: 46 | G6: 18 | H6: 4 | I6: Sándwich de pavo
B7: =StartDate -> 2022-12-07 | C7: 19:00:00 | D7: Cena | E7: 500 | F7: 42 | G7: 35 | H7: 25 | I7: Croquetas de patata gratinadas
B8: =StartDate+1 -> 2022-12-08 | C8: 07:00:00 | D8: Café | E8: 1 | F8: 0 | G8: 0 | H8: 0 | I8: Café matutino
B9: =StartDate+1 -> 2022-12-08 | C9: 08:00:00 | D9: Tostada | E9: 10 | F9: 10 | G9: 2 | H9: 10 | I9: Desayuno ligero
B10: =StartDate+1 -> 2022-12-08 | C10: 12:00:00 | D10: Comida | E10: 189 | F10: 26 | G10: 3 | H10: 8 | I10: Sándwich
B11: =StartDate+1 -> 2022-12-08 | C11: 19:00:00 | D11: Cena | E11: 477 | F11: 62 | G11: 14 | H11: 21 | I11: Cena
B12: =StartDate+2 -> 2022-12-09 | C12: 07:00:00 | D12: Café | E12: 1 | F12: 0 | G12: 0 | H12: 0 | I12: Café matutino
B13: =StartDate+2 -> 2022-12-09 | C13: 08:00:00 | D13: Bagel | E13: 245 | F13: 48 | G13: 10 | H13: 2 | I13: Desayuno ligero
B14: =StartDate+2 -> 2022-12-09 | C14: 12:00:00 | D14: Comida | E14: 247 | F14: 11 | G14: 43 | H14: 5 | I14: Ensalada
B15: =StartDate+2 -> 2022-12-09 | C15: 19:00:00 | D15: Cena | E15: 456 | F15: 64 | G15: 32 | H15: 22 | I15: Cena
B16: =StartDate+3 -> 2022-12-10 | C16: 07:00:00 | D16: Tostada | E16: 10 | F16: 10 | G16: 2 | H16: 10 | I16: Desayuno ligero
B17: =StartDate+3 -> 2022-12-10 | C17: 10:00:00 | D17: Café | E17: 135 | F17: 12 | G17: 9 | H17: 6 | I17: Café con leche
B18: =StartDate+3 -> 2022-12-10 | C18: 12:15:00 | D18: Comida | E18: 184 | F18: 7 | G18: 5 | H18: 15 | I18: Ensalada
B19: =StartDate+5 -> 2022-12-12 | C19: 19:00:00 | D19: Cena | E19: 477 | F19: 62 | G19: 14 | H19: 21 | I19: Cena

Sheet EJERCICIO
B1: EJERCICIO | F1: Dieta | G1: Objetivos
B2: =Subtítulo -> DIARIO DE DIETA Y EJERCICIOS
B3: FECHA | C3: DURACIÓN (MÍN.) | D3: CALORÍAS QUEMADAS | E3: NOTAS
B4: =StartDate+4 -> 2022-12-11 | C4: 30 | D4: 120 | E4: Ejercicios de cinta
B5: =B4+1 -> 2022-12-12 | C5: 60 | D5: 180 | E5: Gimnasia aeróbica de bajo impacto
B6: =B5+1 -> 2022-12-13 | C6: 60 | D6: 350 | E6: Ejercicios extremos
B7: 2022-12-14 | C7: 30 | D7: 150 | E7: Ejercicios de cinta
B8: 2022-12-15 | C8: 25 | D8: 125 | E8: Correr
B9: 2022-12-16 | C9: 20 | D9: 285 | E9: Ejercicios de cinta
B10: 2022-12-17 | C10: 40 | D10: 205 | E10: Correr
B11: 2022-12-18 | C11: 30 | D11: 335 | E11: Correr
B12: 2022-12-19 | C12: 40 | D12: 175 | E12: Correr
B13: 2022-12-20 | C13: 45 | D13: 325 | E13: Ejercicios de cinta
B14: 2022-12-21 | C14: 40 | D14: 270 | E14: Correr
B15: 2022-12-22 | C15: 20 | D15: 295 | E15: Ejercicios de cinta
B16: 2022-12-23 | C16: 45 | D16: 350 | E16: Correr
B17: 2022-12-24 | C17: 35 | D17: 320 | E17: Correr
B18: 2022-12-25 | C18: 40 | D18: 290 | E18: Correr
B19: =B18+1 -> 2022-12-26 | C19: 25 | D19: 265 | E19: Ejercicios de cinta
B20: 2022-12-27 | C20: 20 | D20: 195 | E20: Correr

Sheet Cálculos de gráfico (hidden)
B2: DATOS DEL GRÁFICO ANÁLISIS DE DIETA
B4: Fila inicial | C4: =ROW(Dieta[[#Headers],[FECHA]])+1 -> 4 | D4: FECHA | E4: DÍA | F4: GRASAS | G4: PROTEÍNAS | H4: CARBOHIDRATOS | I4: CALORÍAS | J4: Núm.
B5: Última entrada de la dieta | C5: =MATCH(9.99E+307,Dieta[FECHA])+DietRowStart-1 -> 19 | D5: =IFERROR(IF(INDEX(Dieta[],DietLastEnd-DietRowStart-J5,1)<>"",INDEX(Dieta[],DietLastEnd-DietRowStart-J5,1),""),"") -> 2022-12-07 | E5: =UPPER(TEXT(D5,"DDD")) -> MI | F5: =IFERROR((IF(INDEX(Dieta[],DietLastEnd-DietRowStart-J5,1)<>"",INDEX(Dieta[],DietLastEnd-DietRowStart-J5,7),NA())),NA()) -> 3.5 | G5: =IFERROR((IF(INDEX(Dieta[],DietLastEnd-DietRowStart-J5,1)<>"",INDEX(Dieta[],DietLastEnd-DietRowStart-J5,6),NA())),NA()) -> 18 | H5: =IFERROR((IF(INDEX(Dieta[],DietLastEnd-DietRowStart-J5,1)<>"",INDEX(Dieta[],DietLastEnd-DietRowStart-J5,5),NA())),NA()) -> 46 | I5: =IFERROR((IF(INDEX(Dieta[],DietLastEnd-DietRowStart-J5,1)<>"",INDEX(Dieta[],DietLastEnd-DietRowStart-J5,4),NA())),NA()) -> 283 | J5: 12
D6: =IFERROR(IF(INDEX(Dieta[],DietLastEnd-DietRowStart-J6,1)<>"",INDEX(Dieta[],DietLastEnd-DietRowStart-J6,1),""),"") -> 2022-12-07 | E6: MI | F6: =IFERROR((IF(INDEX(Dieta[],DietLastEnd-DietRowStart-J6,1)<>"",INDEX(Dieta[],DietLastEnd-DietRowStart-J6,7),NA())),NA()) -> 25 | G6: =IFERROR((IF(INDEX(Dieta[],DietLastEnd-DietRowStart-J6,1)<>"",INDEX(Dieta[],DietLastEnd-DietRowStart-J6,6),NA())),NA()) -> 35 | H6: =IFERROR((IF(INDEX(Dieta[],DietLastEnd-DietRowStart-J6,1)<>"",INDEX(Dieta[],DietLastEnd-DietRowStart-J6,5),NA())),NA()) -> 42 | I6: =IFERROR((IF(INDEX(Dieta[],DietLastEnd-DietRowStart-J6,1)<>"",INDEX(Dieta[],DietLastEnd-DietRowStart-J6,4),NA())),NA()) -> 500 | J6: 11
D7: =IFERROR(IF(INDEX(Dieta[],DietLastEnd-DietRowStart-J7,1)<>"",INDEX(Dieta[],DietLastEnd-DietRowStart-J7,1),""),"") -> 2022-12-08 | E7: JU | F7: =IFERROR((IF(INDEX(Dieta[],DietLastEnd-DietRowStart-J7,1)<>"",INDEX(Dieta[],DietLastEnd-DietRowStart-J7,7),NA())),NA()) -> 0 | G7: =IFERROR((IF(INDEX(Dieta[],DietLastEnd-DietRowStart-J7,1)<>"",INDEX(Dieta[],DietLastEnd-DietRowStart-J7,6),NA())),NA()) -> 0 | H7: =IFERROR((IF(INDEX(Dieta[],DietLastEnd-DietRowStart-J7,1)<>"",INDEX(Dieta[],DietLastEnd-DietRowStart-J7,5),NA())),NA()) -> 0 | I7: =IFERROR((IF(INDEX(Dieta[],DietLastEnd-DietRowStart-J7,1)<>"",INDEX(Dieta[],DietLastEnd-DietRowStart-J7,4),NA())),NA()) -> 1 | J7: 10
D8: =IFERROR(IF(INDEX(Dieta[],DietLastEnd-DietRowStart-J8,1)<>"",INDEX(Dieta[],DietLastEnd-DietRowStart-J8,1),""),"") -> 2022-12-08 | E8: JU | F8: =IFERROR((IF(INDEX(Dieta[],DietLastEnd-DietRowStart-J8,1)<>"",INDEX(Dieta[],DietLastEnd-DietRowStart-J8,7),NA())),NA()) -> 10 | G8: =IFERROR((IF(INDEX(Dieta[],DietLastEnd-DietRowStart-J8,1)<>"",INDEX(Dieta[],DietLastEnd-DietRowStart-J8,6),NA())),NA()) -> 2 | H8: =IFERROR((IF(INDEX(Dieta[],DietLastEnd-DietRowStart-J8,1)<>"",INDEX(Dieta[],DietLastEnd-DietRowStart-J8,5),NA())),NA()) -> 10 | I8: =IFERROR((IF(INDEX(Dieta[],DietLastEnd-DietRowStart-J8,1)<>"",INDEX(Dieta[],DietLastEnd-DietRowStart-J8,4),NA())),NA()) -> 10 | J8: 9
D9: =IFERROR(IF(INDEX(Dieta[],DietLastEnd-DietRowStart-J9,1)<>"",INDEX(Dieta[],DietLastEnd-DietRowStart-J9,1),""),"") -> 2022-12-08 | E9: JU | F9: =IFERROR((IF(INDEX(Dieta[],DietLastEnd-DietRowStart-J9,1)<>"",INDEX(Dieta[],DietLastEnd-DietRowStart-J9,7),NA())),NA()) -> 8 | G9: =IFERROR((IF(INDEX(Dieta[],DietLastEnd-DietRowStart-J9,1)<>"",INDEX(Dieta[],DietLastEnd-DietRowStart-J9,6),NA())),NA()) -> 3 | H9: =IFERROR((IF(INDEX(Dieta[],DietLastEnd-DietRowStart-J9,1)<>"",INDEX(Dieta[],DietLastEnd-DietRowStart-J9,5),NA())),NA()) -> 26 | I9: =IFERROR((IF(INDEX(Dieta[],DietLastEnd-DietRowStart-J9,1)<>"",INDEX(Dieta[],DietLastEnd-DietRowStart-J9,4),NA())),NA()) -> 189 | J9: 8
D10: =IFERROR(IF(INDEX(Dieta[],DietLastEnd-DietRowStart-J10,1)<>"",INDEX(Dieta[],DietLastEnd-DietRowStart-J10,1),""),"") -> 2022-12-08 | E10: JU | F10: =IFERROR((IF(INDEX(Dieta[],DietLastEnd-DietRowStart-J10,1)<>"",INDEX(Dieta[],DietLastEnd-DietRowStart-J10,7),NA())),NA()) -> 21 | G10: =IFERROR((IF(INDEX(Dieta[],DietLastEnd-DietRowStart-J10,1)<>"",INDEX(Dieta[],DietLastEnd-DietRowStart-J10,6),NA())),NA()) -> 13.5 | H10: =IFERROR((IF(INDEX(Dieta[],DietLastEnd-DietRowStart-J10,1)<>"",INDEX(Dieta[],DietLastEnd-DietRowStart-J10,5),NA())),NA()) -> 62 | I10: =IFERROR((IF(INDEX(Dieta[],DietLastEnd-DietRowStart-J10,1)<>"",INDEX(Dieta[],DietLastEnd-DietRowStart-J10,4),NA())),NA()) -> 477 | J10: 7
D11: =IFERROR(IF(INDEX(Dieta[],DietLastEnd-DietRowStart-J11,1)<>"",INDEX(Dieta[],DietLastEnd-DietRowStart-J11,1),""),"") -> 2022-12-09 | E11: VI | F11: =IFERROR((IF(INDEX(Dieta[],DietLastEnd-DietRowStart-J11,1)<>"",INDEX(Dieta[],DietLastEnd-DietRowStart-J11,7),NA())),NA()) -> 0 | G11: =IFERROR((IF(INDEX(Dieta[],DietLastEnd-DietRowStart-J11,1)<>"",INDEX(Dieta[],DietLastEnd-DietRowStart-J11,6),NA())),NA()) -> 0 | H11: =IFERROR((IF(INDEX(Dieta[],DietLastEnd-DietRowStart-J11,1)<>"",INDEX(Dieta[],DietLastEnd-DietRowStart-J11,5),NA())),NA()) -> 0 | I11: =IFERROR((IF(INDEX(Dieta[],DietLastEnd-DietRowStart-J11,1)<>"",INDEX(Dieta[],DietLastEnd-DietRowStart-J11,4),NA())),NA()) -> 1 | J11: 6
D12: =IFERROR(IF(INDEX(Dieta[],DietLastEnd-DietRowStart-J12,1)<>"",INDEX(Dieta[],DietLastEnd-DietRowStart-J12,1),""),"") -> 2022-12-09 | E12: VI | F12: =IFERROR((IF(INDEX(Dieta[],DietLastEnd-DietRowStart-J12,1)<>"",INDEX(Dieta[],DietLastEnd-DietRowStart-J12,7),NA())),NA()) -> 1.5 | G12: =IFERROR((IF(INDEX(Dieta[],DietLastEnd-DietRowStart-J12,1)<>"",INDEX(Dieta[],DietLastEnd-DietRowStart-J12,6),NA())),NA()) -> 10 | H12: =IFERROR((IF(INDEX(Dieta[],DietLastEnd-DietRowStart-J12,1)<>"",INDEX(Dieta[],DietLastEnd-DietRowStart-J12,5),NA())),NA()) -> 48 | I12: =IFERROR((IF(INDEX(Dieta[],DietLastEnd-DietRowStart-J12,1)<>"",INDEX(Dieta[],DietLastEnd-DietRowStart-J12,4),NA())),NA()) -> 245 | J12: 5
D13: =IFERROR(IF(INDEX(Dieta[],DietLastEnd-DietRowStart-J13,1)<>"",INDEX(Dieta[],DietLastEnd-DietRowStart-J13,1),""),"") -> 2022-12-09 | E13: VI | F13: =IFERROR((IF(INDEX(Dieta[],DietLastEnd-DietRowStart-J13,1)<>"",INDEX(Dieta[],DietLastEnd-DietRowStart-J13,7),NA())),NA()) -> 5 | G13: =IFERROR((IF(INDEX(Dieta[],DietLastEnd-DietRowStart-J13,1)<>"",INDEX(Dieta[],DietLastEnd-DietRowStart-J13,6),NA())),NA()) -> 43 | H13: =IFERROR((IF(INDEX(Dieta[],DietLastEnd-DietRowStart-J13,1)<>"",INDEX(Dieta[],DietLastEnd-DietRowStart-J13,5),NA())),NA()) -> 11 | I13: =IFERROR((IF(INDEX(Dieta[],DietLastEnd-DietRowStart-J13,1)<>"",INDEX(Dieta[],DietLastEnd-DietRowStart-J13,4),NA())),NA()) -> 247 | J13: 4
D14: =IFERROR(IF(INDEX(Dieta[],DietLastEnd-DietRowStart-J14,1)<>"",INDEX(Dieta[],DietLastEnd-DietRowStart-J14,1),""),"") -> 2022-12-09 | E14: VI | F14: =IFERROR((IF(INDEX(Dieta[],DietLastEnd-DietRowStart-J14,1)<>"",INDEX(Dieta[],DietLastEnd-DietRowStart-J14,7),NA())),NA()) -> 22 | G14: =IFERROR((IF(INDEX(Dieta[],DietLastEnd-DietRowStart-J14,1)<>"",INDEX(Dieta[],DietLastEnd-DietRowStart-J14,6),NA())),NA()) -> 32 | H14: =IFERROR((IF(INDEX(Dieta[],DietLastEnd-DietRowStart-J14,1)<>"",INDEX(Dieta[],DietLastEnd-DietRowStart-J14,5),NA())),NA()) -> 64 | I14: =IFERROR((IF(INDEX(Dieta[],DietLastEnd-DietRowStart-J14,1)<>"",INDEX(Dieta[],DietLastEnd-DietRowStart-J14,4),NA())),NA()) -> 456 | J14: 3
D15: =IFERROR(IF(INDEX(Dieta[],DietLastEnd-DietRowStart-J15,1)<>"",INDEX(Dieta[],DietLastEnd-DietRowStart-J15,1),""),"") -> 2022-12-10 | E15: SÁ | F15: =IFERROR((IF(INDEX(Dieta[],DietLastEnd-DietRowStart-J15,1)<>"",INDEX(Dieta[],DietLastEnd-DietRowStart-J15,7),NA())),NA()) -> 10 | G15: =IFERROR((IF(INDEX(Dieta[],DietLastEnd-DietRowStart-J15,1)<>"",INDEX(Dieta[],DietLastEnd-DietRowStart-J15,6),NA())),NA()) -> 2 | H15: =IFERROR((IF(INDEX(Dieta[],DietLastEnd-DietRowStart-J15,1)<>"",INDEX(Dieta[],DietLastEnd-DietRowStart-J15,5),NA())),NA()) -> 10 | I15: =IFERROR((IF(INDEX(Dieta[],DietLastEnd-DietRowStart-J15,1)<>"",INDEX(Dieta[],DietLastEnd-DietRowStart-J15,4),NA())),NA()) -> 10 | J15: 2
D16: =IFERROR(IF(INDEX(Dieta[],DietLastEnd-DietRowStart-J16,1)<>"",INDEX(Dieta[],DietLastEnd-DietRowStart-J16,1),""),"") -> 2022-12-10 | E16: SÁ | F16: =IFERROR((IF(INDEX(Dieta[],DietLastEnd-DietRowStart-J16,1)<>"",INDEX(Dieta[],DietLastEnd-DietRowStart-J16,7),NA())),NA()) -> 5.51 | G16: =IFERROR((IF(INDEX(Dieta[],DietLastEnd-DietRowStart-J16,1)<>"",INDEX(Dieta[],DietLastEnd-DietRowStart-J16,6),NA())),NA()) -> 8.81 | H16: =IFERROR((IF(INDEX(Dieta[],DietLastEnd-DietRowStart-J16,1)<>"",INDEX(Dieta[],DietLastEnd-DietRowStart-J16,5),NA())),NA()) -> 12.36 | I16: =IFERROR((IF(INDEX(Dieta[],DietLastEnd-DietRowStart-J16,1)<>"",INDEX(Dieta[],DietLastEnd-DietRowStart-J16,4),NA())),NA()) -> 135 | J16: 1
D17: =IFERROR(IF(INDEX(Dieta[],DietLastEnd-DietRowStart-J17,1)<>"",INDEX(Dieta[],DietLastEnd-DietRowStart-J17,1),""),"") -> 2022-12-10 | E17: SÁ | F17: =IFERROR((IF(INDEX(Dieta[],DietLastEnd-DietRowStart-J17,1)<>"",INDEX(Dieta[],DietLastEnd-DietRowStart-J17,7),NA())),NA()) -> 15 | G17: =IFERROR((IF(INDEX(Dieta[],DietLastEnd-DietRowStart-J17,1)<>"",INDEX(Dieta[],DietLastEnd-DietRowStart-J17,6),NA())),NA()) -> 5.43 | H17: =IFERROR((IF(INDEX(Dieta[],DietLastEnd-DietRowStart-J17,1)<>"",INDEX(Dieta[],DietLastEnd-DietRowStart-J17,5),NA())),NA()) -> 7 | I17: =IFERROR((IF(INDEX(Dieta[],DietLastEnd-DietRowStart-J17,1)<>"",INDEX(Dieta[],DietLastEnd-DietRowStart-J17,4),NA())),NA()) -> 184 | J17: 0
D18: =IFERROR(IF(INDEX(Dieta[],DietLastEnd-DietRowStart-J18,1)<>"",INDEX(Dieta[],DietLastEnd-DietRowStart-J18,1)),"") -> 2022-12-12 | E18: LU | F18: =IFERROR((IF(INDEX(Dieta[],DietLastEnd-DietRowStart-J18,1)<>"",INDEX(Dieta[],DietLastEnd-DietRowStart-J18,7),NA())),NA()) -> 21 | G18: =IFERROR((IF(INDEX(Dieta[],DietLastEnd-DietRowStart-J18,1)<>"",INDEX(Dieta[],DietLastEnd-DietRowStart-J18,6),NA())),NA()) -> 13.5 | H18: =IFERROR((IF(INDEX(Dieta[],DietLastEnd-DietRowStart-J18,1)<>"",INDEX(Dieta[],DietLastEnd-DietRowStart-J18,5),NA())),NA()) -> 62 | I18: =IFERROR((IF(INDEX(Dieta[],DietLastEnd-DietRowStart-J18,1)<>"",INDEX(Dieta[],DietLastEnd-DietRowStart-J18,4),NA())),NA()) -> 477 | J18: -1
B20: DATOS DEL GRÁFICO ANÁLISIS DE EJERCICIOS
B22: Fila inicial | C22: =ROW(Ejercicio[[#Headers],[FECHA]])+1 -> 4 | D22: FECHA | E22: DÍA | F22: DURACIÓN (MÍN.) | G22: CALORÍAS QUEMADAS | H22: Núm.
B23: Última entrada de ejercicio | C23: =MATCH(9.99E+307,Ejercicio[FECHA])+ExerciseRowStart-1 -> 20 | D23: =IFERROR(IF(INDEX(Ejercicio[],ExerciseLastEnd-ExerciseRowStart-H23,1)<>"",INDEX(Ejercicio[],ExerciseLastEnd-ExerciseRowStart-H23,1)),"") -> 2022-12-27 | E23: =UPPER(TEXT(D23,"DDD")) -> MA | F23: =IFERROR((IF(INDEX(Ejercicio[],ExerciseLastEnd-ExerciseRowStart-H23,1)<>"",INDEX(Ejercicio[],ExerciseLastEnd-ExerciseRowStart-H23,2),0)),0) -> 20 | G23: =IFERROR((IF(INDEX(Ejercicio[],ExerciseLastEnd-ExerciseRowStart-H23,2)<>"",INDEX(Ejercicio[],ExerciseLastEnd-ExerciseRowStart-H23,3),0)),0) -> 195 | H23: -1
D24: =IFERROR(IF(INDEX(Ejercicio[],ExerciseLastEnd-ExerciseRowStart-H24,1)<>"",INDEX(Ejercicio[],ExerciseLastEnd-ExerciseRowStart-H24,1)),"") -> 2022-12-26 | E24: LU | F24: =IFERROR((IF(INDEX(Ejercicio[],ExerciseLastEnd-ExerciseRowStart-H24,1)<>"",INDEX(Ejercicio[],ExerciseLastEnd-ExerciseRowStart-H24,2),0)),0) -> 25 | G24: =IFERROR((IF(INDEX(Ejercicio[],ExerciseLastEnd-ExerciseRowStart-H24,2)<>"",INDEX(Ejercicio[],ExerciseLastEnd-ExerciseRowStart-H24,3),0)),0) -> 265 | H24: 0
D25: =IFERROR(IF(INDEX(Ejercicio[],ExerciseLastEnd-ExerciseRowStart-H25,1)<>"",INDEX(Ejercicio[],ExerciseLastEnd-ExerciseRowStart-H25,1)),"") -> 2022-12-25 | E25: DO | F25: =IFERROR((IF(INDEX(Ejercicio[],ExerciseLastEnd-ExerciseRowStart-H25,1)<>"",INDEX(Ejercicio[],ExerciseLastEnd-ExerciseRowStart-H25,2),0)),0) -> 40 | G25: =IFERROR((IF(INDEX(Ejercicio[],ExerciseLastEnd-ExerciseRowStart-H25,2)<>"",INDEX(Ejercicio[],ExerciseLastEnd-ExerciseRowStart-H25,3),0)),0) -> 290 | H25: 1
D26: =IFERROR(IF(INDEX(Ejercicio[],ExerciseLastEnd-ExerciseRowStart-H26,1)<>"",INDEX(Ejercicio[],ExerciseLastEnd-ExerciseRowStart-H26,1)),"") -> 2022-12-24 | E26: SÁ | F26: =IFERROR((IF(INDEX(Ejercicio[],ExerciseLastEnd-ExerciseRowStart-H26,1)<>"",INDEX(Ejercicio[],ExerciseLastEnd-ExerciseRowStart-H26,2),0)),0) -> 35 | G26: =IFERROR((IF(INDEX(Ejercicio[],ExerciseLastEnd-ExerciseRowStart-H26,2)<>"",INDEX(Ejercicio[],ExerciseLastEnd-ExerciseRowStart-H26,3),0)),0) -> 320 | H26: 2
D27: =IFERROR(IF(INDEX(Ejercicio[],ExerciseLastEnd-ExerciseRowStart-H27,1)<>"",INDEX(Ejercicio[],ExerciseLastEnd-ExerciseRowStart-H27,1)),"") -> 2022-12-23 | E27: VI | F27: =IFERROR((IF(INDEX(Ejercicio[],ExerciseLastEnd-ExerciseRowStart-H27,1)<>"",INDEX(Ejercicio[],ExerciseLastEnd-ExerciseRowStart-H27,2),0)),0) -> 45 | G27: =IFERROR((IF(INDEX(Ejercicio[],ExerciseLastEnd-ExerciseRowStart-H27,2)<>"",INDEX(Ejercicio[],ExerciseLastEnd-ExerciseRowStart-H27,3),0)),0) -> 350 | H27: 3
D28: =IFERROR(IF(INDEX(Ejercicio[],ExerciseLastEnd-ExerciseRowStart-H28,1)<>"",INDEX(Ejercicio[],ExerciseLastEnd-ExerciseRowStart-H28,1)),"") -> 2022-12-22 | E28: JU | F28: =IFERROR((IF(INDEX(Ejercicio[],ExerciseLastEnd-ExerciseRowStart-H28,1)<>"",INDEX(Ejercicio[],ExerciseLastEnd-ExerciseRowStart-H28,2),0)),0) -> 20 | G28: =IFERROR((IF(INDEX(Ejercicio[],ExerciseLastEnd-ExerciseRowStart-H28,2)<>"",INDEX(Ejercicio[],ExerciseLastEnd-ExerciseRowStart-H28,3),0)),0) -> 295 | H28: 4
D29: =IFERROR(IF(INDEX(Ejercicio[],ExerciseLastEnd-ExerciseRowStart-H29,1)<>"",INDEX(Ejercicio[],ExerciseLastEnd-ExerciseRowStart-H29,1)),"") -> 2022-12-21 | E29: MI | F29: =IFERROR((IF(INDEX(Ejercicio[],ExerciseLastEnd-ExerciseRowStart-H29,1)<>"",INDEX(Ejercicio[],ExerciseLastEnd-ExerciseRowStart-H29,2),0)),0) -> 40 | G29: =IFERROR((IF(INDEX(Ejercicio[],ExerciseLastEnd-ExerciseRowStart-H29,2)<>"",INDEX(Ejercicio[],ExerciseLastEnd-ExerciseRowStart-H29,3),0)),0) -> 270 | H29: 5
D30: =IFERROR(IF(INDEX(Ejercicio[],ExerciseLastEnd-ExerciseRowStart-H30,1)<>"",INDEX(Ejercicio[],ExerciseLastEnd-ExerciseRowStart-H30,1)),"") -> 2022-12-20 | E30: MA | F30: =IFERROR((IF(INDEX(Ejercicio[],ExerciseLastEnd-ExerciseRowStart-H30,1)<>"",INDEX(Ejercicio[],ExerciseLastEnd-ExerciseRowStart-H30,2),0)),0) -> 45 | G30: =IFERROR((IF(INDEX(Ejercicio[],ExerciseLastEnd-ExerciseRowStart-H30,2)<>"",INDEX(Ejercicio[],ExerciseLastEnd-ExerciseRowStart-H30,3),0)),0) -> 325 | H30: 6
D31: =IFERROR(IF(INDEX(Ejercicio[],ExerciseLastEnd-ExerciseRowStart-H31,1)<>"",INDEX(Ejercicio[],ExerciseLastEnd-ExerciseRowStart-H31,1)),"") -> 2022-12-19 | E31: LU | F31: =IFERROR((IF(INDEX(Ejercicio[],ExerciseLastEnd-ExerciseRowStart-H31,1)<>"",INDEX(Ejercicio[],ExerciseLastEnd-ExerciseRowStart-H31,2),0)),0) -> 40 | G31: =IFERROR((IF(INDEX(Ejercicio[],ExerciseLastEnd-ExerciseRowStart-H31,2)<>"",INDEX(Ejercicio[],ExerciseLastEnd-ExerciseRowStart-H31,3),0)),0) -> 175 | H31: 7
D32: =IFERROR(IF(INDEX(Ejercicio[],ExerciseLastEnd-ExerciseRowStart-H32,1)<>"",INDEX(Ejercicio[],ExerciseLastEnd-ExerciseRowStart-H32,1)),"") -> 2022-12-18 | E32: DO | F32: =IFERROR((IF(INDEX(Ejercicio[],ExerciseLastEnd-ExerciseRowStart-H32,1)<>"",INDEX(Ejercicio[],ExerciseLastEnd-ExerciseRowStart-H32,2),0)),0) -> 30 | G32: =IFERROR((IF(INDEX(Ejercicio[],ExerciseLastEnd-ExerciseRowStart-H32,2)<>"",INDEX(Ejercicio[],ExerciseLastEnd-ExerciseRowStart-H32,3),0)),0) -> 335 | H32: 8
D33: =IFERROR(IF(INDEX(Ejercicio[],ExerciseLastEnd-ExerciseRowStart-H33,1)<>"",INDEX(Ejercicio[],ExerciseLastEnd-ExerciseRowStart-H33,1)),"") -> 2022-12-17 | E33: SÁ | F33: =IFERROR((IF(INDEX(Ejercicio[],ExerciseLastEnd-ExerciseRowStart-H33,1)<>"",INDEX(Ejercicio[],ExerciseLastEnd-ExerciseRowStart-H33,2),0)),0) -> 40 | G33: =IFERROR((IF(INDEX(Ejercicio[],ExerciseLastEnd-ExerciseRowStart-H33,2)<>"",INDEX(Ejercicio[],ExerciseLastEnd-ExerciseRowStart-H33,3),0)),0) -> 205 | H33: 9
D34: =IFERROR(IF(INDEX(Ejercicio[],ExerciseLastEnd-ExerciseRowStart-H34,1)<>"",INDEX(Ejercicio[],ExerciseLastEnd-ExerciseRowStart-H34,1)),"") -> 2022-12-16 | E34: VI | F34: =IFERROR((IF(INDEX(Ejercicio[],ExerciseLastEnd-ExerciseRowStart-H34,1)<>"",INDEX(Ejercicio[],ExerciseLastEnd-ExerciseRowStart-H34,2),0)),0) -> 20 | G34: =IFERROR((IF(INDEX(Ejercicio[],ExerciseLastEnd-ExerciseRowStart-H34,2)<>"",INDEX(Ejercicio[],ExerciseLastEnd-ExerciseRowStart-H34,3),0)),0) -> 285 | H34: 10
D35: =IFERROR(IF(INDEX(Ejercicio[],ExerciseLastEnd-ExerciseRowStart-H35,1)<>"",INDEX(Ejercicio[],ExerciseLastEnd-ExerciseRowStart-H35,1)),"") -> 2022-12-15 | E35: JU | F35: =IFERROR((IF(INDEX(Ejercicio[],ExerciseLastEnd-ExerciseRowStart-H35,1)<>"",INDEX(Ejercicio[],ExerciseLastEnd-ExerciseRowStart-H35,2),0)),0) -> 25 | G35: =IFERROR((IF(INDEX(Ejercicio[],ExerciseLastEnd-ExerciseRowStart-H35,2)<>"",INDEX(Ejercicio[],ExerciseLastEnd-ExerciseRowStart-H35,3),0)),0) -> 125 | H35: 11
D36: =IFERROR(IF(INDEX(Ejercicio[],ExerciseLastEnd-ExerciseRowStart-H36,1)<>"",INDEX(Ejercicio[],ExerciseLastEnd-ExerciseRowStart-H36,1)),"") -> 2022-12-14 | E36: MI | F36: =IFERROR((IF(INDEX(Ejercicio[],ExerciseLastEnd-ExerciseRowStart-H36,1)<>"",INDEX(Ejercicio[],ExerciseLastEnd-ExerciseRowStart-H36,2),0)),0) -> 30 | G36: =IFERROR((IF(INDEX(Ejercicio[],ExerciseLastEnd-ExerciseRowStart-H36,2)<>"",INDEX(Ejercicio[],ExerciseLastEnd-ExerciseRowStart-H36,3),0)),0) -> 150 | H36: 12
